[Event "*** Titled Tuesday Blitz"]
[Site "Chess.com"]
[Date "2020.01.07"]
[Round "7"]
[White "AlexTriapishko"]
[Black "Ar4uha"]
[Result "1-0"]
[WhiteElo "2851"]
[BlackElo "2608"]
[TimeControl "180+2"]
[EndTime "14:36:23 PST"]
[Termination "AlexTriapishko won by resignation"]

1. Nf3 {[%clk 0:02:22.3]} 1... Nf6 {[%clk 0:02:59.2]} 2. g3 {[%clk 0:02:19.8]}
2... e6 {[%clk 0:03:00.2]} 3. Bg2 {[%clk 0:02:20.6]} 3... d5 {[%clk 0:03:02.1]}
4. O-O {[%clk 0:02:21.5]} 4... Be7 {[%clk 0:03:04]} 5. b3 {[%clk 0:02:23]} 5...
O-O {[%clk 0:03:05]} 6. Bb2 {[%clk 0:02:24.5]} 6... c5 {[%clk 0:03:06.9]} 7. c4
{[%clk 0:02:26]} 7... Nc6 {[%clk 0:03:07.8]} 8. cxd5 {[%clk 0:02:21.5]} 8...
Nxd5 {[%clk 0:03:08.4]} 9. d4 {[%clk 0:02:22.8]} 9... cxd4 {[%clk 0:03:08.6]}
10. Nxd4 {[%clk 0:02:22.8]} 10... Bf6 {[%clk 0:03:10.2]} 11. Nxc6 {[%clk
0:02:22.5]} 11... bxc6 {[%clk 0:03:12]} 12. Qc2 {[%clk 0:01:59.4]} 12... Ba6
{[%clk 0:03:11.7]} 13. Bxf6 {[%clk 0:01:32.2]} 13... Qxf6 {[%clk 0:03:12.6]} 14.
Nd2 {[%clk 0:01:33.6]} 14... Qc3 {[%clk 0:03:01.2]} 15. Rfc1 {[%clk 0:01:20.7]}
15... Qxc2 {[%clk 0:02:59.1]} 16. Rxc2 {[%clk 0:01:22.6]} 16... Bxe2 {[%clk
0:02:59.5]} 17. Rxc6 {[%clk 0:01:18.3]} 17... a5 {[%clk 0:02:57.1]} 18. Re1
{[%clk 0:01:05.2]} 18... Nb4 {[%clk 0:02:54.2]} 19. Rxe2 {[%clk 0:00:58.4]}
19... Nxc6 {[%clk 0:02:54.7]} 20. Bxc6 {[%clk 0:01:00.3]} 20... Rac8 {[%clk
0:02:56.6]} 21. Bf3 {[%clk 0:00:53.6]} 21... Rc2 {[%clk 0:02:56.4]} 22. Nc4
{[%clk 0:00:54]} 22... Rc1+ {[%clk 0:02:49.3]} 23. Kg2 {[%clk 0:00:54.5]} 23...
a4 {[%clk 0:02:51.2]} 24. Rb2 {[%clk 0:00:43.7]} 24... axb3 {[%clk 0:02:44.5]}
25. axb3 {[%clk 0:00:45.6]} 25... Rb8 {[%clk 0:02:45.9]} 26. Ne5 {[%clk
0:00:33.6]} 26... f6 {[%clk 0:02:42.1]} 27. Nc6 {[%clk 0:00:30.3]} 27... Rb6
{[%clk 0:02:43.3]} 28. Nd4 {[%clk 0:00:21.1]} 28... Kf7 {[%clk 0:02:43.9]} 29.
Ra2 {[%clk 0:00:17.1]} 29... Rc7 {[%clk 0:02:26.7]} 30. Be2 {[%clk 0:00:12.1]}
30... Rd7 {[%clk 0:02:17]} 31. Ra4 {[%clk 0:00:12.4]} 31... Kg6 {[%clk
0:01:51.4]} 32. Nb5 {[%clk 0:00:07.6]} 32... Rdb7 {[%clk 0:01:41.1]} 33. Ra5
{[%clk 0:00:07.2]} 33... Rd7 {[%clk 0:01:40.3]} 34. Bc4 {[%clk 0:00:08]} 34...
Rd2 {[%clk 0:01:41.7]} 35. Nc3 {[%clk 0:00:07.5]} 35... f5 {[%clk 0:01:40.1]}
36. Re5 {[%clk 0:00:06.5]} 36... Kf6 {[%clk 0:01:40.4]} 37. Re3 {[%clk
0:00:07.4]} 37... g5 {[%clk 0:01:39.9]} 38. h3 {[%clk 0:00:05.8]} 38... h5
{[%clk 0:01:40.9]} 39. g4 {[%clk 0:00:06.1]} 39... hxg4 {[%clk 0:01:39.2]} 40.
hxg4 {[%clk 0:00:07.2]} 40... Rbd6 {[%clk 0:01:30.7]} 41. Nb5 {[%clk 0:00:07.9]}
41... Rb6 {[%clk 0:01:27.1]} 42. Nc7 {[%clk 0:00:07.9]} 42... fxg4 {[%clk
0:01:15.3]} 43. Bxe6 {[%clk 0:00:08.5]} 43... Rbd6 {[%clk 0:00:58.5]} 44. Ne8+
{[%clk 0:00:08.8]} 44... Kg6 {[%clk 0:00:57.1]} 45. Nxd6 {[%clk 0:00:09.7]}
45... Rxd6 {[%clk 0:00:59]} 46. Bxg4 {[%clk 0:00:11.1]} 46... Kf6 {[%clk
0:01:00.9]} 47. Be2 {[%clk 0:00:11.9]} 47... Kf5 {[%clk 0:01:01.7]} 48. Bc4
{[%clk 0:00:13.3]} 48... Kf4 {[%clk 0:01:03.4]} 49. Rg3 {[%clk 0:00:14.7]} 49...
g4 {[%clk 0:01:04.4]} 50. Be2 {[%clk 0:00:15]} 1-0

[Event "*** Titled Tuesday Blitz"]
[Site "Chess.com"]
[Date "2020.01.07"]
[Round "7"]
[White "Bad4life"]
[Black "Gnechko_Ruslan"]
[Result "0-1"]
[WhiteElo "2331"]
[BlackElo "2496"]
[TimeControl "180+2"]
[EndTime "14:36:23 PST"]
[Termination "Gnechko_Ruslan won on time"]

1. e4 {[%clk 0:02:58.9]} 1... c5 {[%clk 0:02:59.9]} 2. Nf3 {[%clk 0:02:58.5]}
2... d6 {[%clk 0:03:01.1]} 3. Bb5+ {[%clk 0:02:58.8]} 3... Nc6 {[%clk
0:03:01.4]} 4. Ba4 {[%clk 0:02:59.2]} 4... g6 {[%clk 0:03:00.6]} 5. O-O {[%clk
0:02:59.8]} 5... Bg7 {[%clk 0:03:02.1]} 6. Re1 {[%clk 0:03:01.3]} 6... Bd7
{[%clk 0:03:00.5]} 7. c3 {[%clk 0:03:02.1]} 7... Nf6 {[%clk 0:03:01]} 8. d4
{[%clk 0:03:03.1]} 8... O-O {[%clk 0:02:42.3]} 9. h3 {[%clk 0:03:03.6]} 9... a6
{[%clk 0:02:42.5]} 10. Bg5 {[%clk 0:03:00]} 10... b5 {[%clk 0:02:42.8]} 11. Bb3
{[%clk 0:02:55.6]} 11... Na5 {[%clk 0:02:33.5]} 12. Bc2 {[%clk 0:02:56.1]} 12...
cxd4 {[%clk 0:02:31.4]} 13. cxd4 {[%clk 0:02:54.3]} 13... Rc8 {[%clk 0:02:32.5]}
14. e5 {[%clk 0:02:42.7]} 14... dxe5 {[%clk 0:02:23.6]} 15. dxe5 {[%clk
0:02:43.9]} 15... Ne8 {[%clk 0:02:25]} 16. Nc3 {[%clk 0:02:43.1]} 16... Nc7
{[%clk 0:02:09.5]} 17. b4 {[%clk 0:02:31.8]} 17... Nc4 {[%clk 0:02:08.4]} 18.
Qe2 {[%clk 0:02:30.5]} 18... Ne6 {[%clk 0:02:08.3]} 19. Bh4 {[%clk 0:02:24.3]}
19... Bc6 {[%clk 0:01:59.6]} 20. Rad1 {[%clk 0:02:23.3]} 20... Qc7 {[%clk
0:01:58.4]} 21. Be4 {[%clk 0:02:08.9]} 21... Rfd8 {[%clk 0:01:25.8]} 22. Bxc6
{[%clk 0:02:06.1]} 22... Qxc6 {[%clk 0:01:22.6]} 23. Bxe7 {[%clk 0:02:01.6]}
23... Rxd1 {[%clk 0:01:22.5]} 24. Rxd1 {[%clk 0:02:00.2]} 24... Nxe5 {[%clk
0:01:20.5]} 25. Nd5 {[%clk 0:01:21]} 25... Nxf3+ {[%clk 0:00:53.3]} 26. Qxf3
{[%clk 0:01:21.8]} 26... Nd4 {[%clk 0:00:53.9]} 27. Qe4 {[%clk 0:00:52.4]} 27...
f5 {[%clk 0:00:44.3]} 28. Bf6 {[%clk 0:00:10.8]} 28... fxe4 {[%clk 0:00:41.8]}
29. Ne7+ {[%clk 0:00:11.6]} 29... Kf7 {[%clk 0:00:43.2]} 30. Nxc6 {[%clk
0:00:13]} 30... Nxc6 {[%clk 0:00:44.5]} 31. Bg5 {[%clk 0:00:09.3]} 31... Nd4
{[%clk 0:00:40.8]} 32. Be3 {[%clk 0:00:09.2]} 32... Rc4 {[%clk 0:00:38.9]} 33.
a3 {[%clk 0:00:09.3]} 33... Ke6 {[%clk 0:00:38]} 34. f3 {[%clk 0:00:10.6]} 34...
exf3 {[%clk 0:00:38.5]} 35. gxf3 {[%clk 0:00:12.1]} 35... Nxf3+ {[%clk
0:00:39.3]} 36. Kf2 {[%clk 0:00:13.8]} 36... Ne5 {[%clk 0:00:39.1]} 37. Rd8
{[%clk 0:00:15.2]} 37... Bf6 {[%clk 0:00:38.5]} 38. Re8+ {[%clk 0:00:15.4]}
38... Kf5 {[%clk 0:00:39.5]} 39. Rf8 {[%clk 0:00:16.2]} 39... Rc2+ {[%clk
0:00:40.4]} 40. Kf1 {[%clk 0:00:16.3]} 40... Rc3 {[%clk 0:00:39.3]} 0-1

[Event "*** Titled Tuesday Blitz"]
[Site "Chess.com"]
[Date "2020.01.07"]
[Round "7"]
[White "TigrVShlyape"]
[Black "ExploringChess"]
[Result "0-1"]
[WhiteElo "2804"]
[BlackElo "2625"]
[TimeControl "180+2"]
[EndTime "14:36:26 PST"]
[Termination "ExploringChess won on time"]

1. d4 {[%clk 0:03:01.9]} 1... g6 {[%clk 0:02:53.4]} 2. Nf3 {[%clk 0:03:01.9]}
2... Bg7 {[%clk 0:02:50.8]} 3. c3 {[%clk 0:03:02.8]} 3... d5 {[%clk 0:02:49.8]}
4. Bf4 {[%clk 0:03:02.9]} 4... c5 {[%clk 0:02:45.6]} 5. e3 {[%clk 0:03:01.7]}
5... Nf6 {[%clk 0:02:45.8]} 6. Nbd2 {[%clk 0:03:00.3]} 6... Nc6 {[%clk
0:02:46.7]} 7. dxc5 {[%clk 0:03:00.4]} 7... O-O {[%clk 0:02:42.2]} 8. Rc1 {[%clk
0:02:56.6]} 8... a5 {[%clk 0:02:35.4]} 9. Bb5 {[%clk 0:02:36.9]} 9... Nd7 {[%clk
0:02:32.1]} 10. Nb3 {[%clk 0:02:20.3]} 10... a4 {[%clk 0:02:26.4]} 11. Nbd4
{[%clk 0:02:20.9]} 11... Nxc5 {[%clk 0:02:27.5]} 12. O-O {[%clk 0:01:57.6]}
12... Bd7 {[%clk 0:02:23.3]} 13. c4 {[%clk 0:01:51.2]} 13... Nxd4 {[%clk
0:02:21.5]} 14. exd4 {[%clk 0:01:48.4]} 14... Bxb5 {[%clk 0:02:21.9]} 15. cxb5
{[%clk 0:01:47]} 15... Ne6 {[%clk 0:02:22.4]} 16. Be5 {[%clk 0:01:42.7]} 16...
Qb6 {[%clk 0:02:18]} 17. Bxg7 {[%clk 0:01:41.6]} 17... Kxg7 {[%clk 0:02:19.9]}
18. Qe2 {[%clk 0:01:41.9]} 18... Ra5 {[%clk 0:02:09.2]} 19. Qe5+ {[%clk
0:01:37.8]} 19... Kg8 {[%clk 0:02:10.4]} 20. Qxd5 {[%clk 0:01:37]} 20... Rxb5
{[%clk 0:02:11.4]} 21. Qd7 {[%clk 0:01:35.8]} 21... Rxb2 {[%clk 0:02:10.4]} 22.
Qxa4 {[%clk 0:01:33.3]} 22... Nf4 {[%clk 0:02:07.4]} 23. Rce1 {[%clk 0:01:14.7]}
23... e6 {[%clk 0:01:49.9]} 24. Re3 {[%clk 0:01:11.7]} 24... Ne2+ {[%clk
0:01:40.3]} 25. Kh1 {[%clk 0:01:12.6]} 25... Rb1 {[%clk 0:01:42.1]} 26. Rd1
{[%clk 0:00:44.6]} 26... Qc6 {[%clk 0:01:23.8]} 27. Rxb1 {[%clk 0:00:44]} 27...
Qxa4 {[%clk 0:01:22.6]} 28. Rxe2 {[%clk 0:00:45.3]} 28... b5 {[%clk 0:01:17.4]}
29. Reb2 {[%clk 0:00:45.5]} 29... Rc8 {[%clk 0:01:15.3]} 30. h4 {[%clk
0:00:30.1]} 30... Rc2 {[%clk 0:01:13]} 31. Kg1 {[%clk 0:00:23.7]} 31... Rxb2
{[%clk 0:01:09.4]} 32. Rxb2 {[%clk 0:00:24.6]} 32... Qc4 {[%clk 0:01:07.6]} 33.
Kh2 {[%clk 0:00:21.1]} 33... h6 {[%clk 0:01:02.7]} 34. a3 {[%clk 0:00:21]} 34...
Kg7 {[%clk 0:00:46.3]} 35. Rb4 {[%clk 0:00:20.8]} 35... Qd3 {[%clk 0:00:46.2]}
36. a4 {[%clk 0:00:17.5]} 36... bxa4 {[%clk 0:00:44.3]} 37. Rxa4 {[%clk
0:00:18.5]} 37... Qc2 {[%clk 0:00:46.2]} 38. Ra7 {[%clk 0:00:14.7]} 38... Qxf2
{[%clk 0:00:47]} 39. Kh3 {[%clk 0:00:14]} 39... Qe3 {[%clk 0:00:46.8]} 40. Kh2
{[%clk 0:00:11.7]} 40... Qf4+ {[%clk 0:00:42.9]} 41. Kh1 {[%clk 0:00:09]} 41...
g5 {[%clk 0:00:44.1]} 42. hxg5 {[%clk 0:00:09.6]} 42... hxg5 {[%clk 0:00:46]}
0-1

[Event "*** Titled Tuesday Blitz"]
[Site "Chess.com"]
[Date "2020.01.07"]
[Round "7"]
[White "boasovietica"]
[Black "mohssenbinaddi"]
[Result "0-1"]
[WhiteElo "2459"]
[BlackElo "2237"]
[TimeControl "180+2"]
[EndTime "14:36:27 PST"]
[Termination "mohssenbinaddi won by checkmate"]

1. Nf3 {[%clk 0:02:59.8]} 1... c6 {[%clk 0:03:01.9]} 2. c4 {[%clk 0:02:59.9]}
2... d5 {[%clk 0:03:03.8]} 3. e3 {[%clk 0:02:59.7]} 3... Nf6 {[%clk 0:03:03.8]}
4. Nc3 {[%clk 0:03:00.7]} 4... g6 {[%clk 0:03:01.9]} 5. cxd5 {[%clk 0:02:53.2]}
5... Nxd5 {[%clk 0:02:57.3]} 6. d4 {[%clk 0:02:43.5]} 6... Bg7 {[%clk
0:02:56.1]} 7. h4 {[%clk 0:02:41.8]} 7... Bg4 {[%clk 0:02:47.4]} 8. Qb3 {[%clk
0:02:41.6]} 8... Nxc3 {[%clk 0:02:44.5]} 9. bxc3 {[%clk 0:02:36.3]} 9... Qb6
{[%clk 0:02:42]} 10. Qc2 {[%clk 0:02:21.9]} 10... Bxf3 {[%clk 0:02:38.1]} 11.
gxf3 {[%clk 0:02:22.5]} 11... e5 {[%clk 0:02:37]} 12. Rb1 {[%clk 0:02:22.4]}
12... Qc7 {[%clk 0:02:33.3]} 13. h5 {[%clk 0:02:22.1]} 13... Nd7 {[%clk
0:02:33.9]} 14. a4 {[%clk 0:02:08.2]} 14... exd4 {[%clk 0:02:18.8]} 15. cxd4
{[%clk 0:02:07]} 15... O-O-O {[%clk 0:02:10.6]} 16. Bd2 {[%clk 0:02:04.7]} 16...
Rhe8 {[%clk 0:02:02.2]} 17. Be2 {[%clk 0:02:03.6]} 17... Nf6 {[%clk 0:01:57.5]}
18. h6 {[%clk 0:02:01.4]} 18... Bf8 {[%clk 0:01:52.7]} 19. a5 {[%clk 0:02:00.5]}
19... a6 {[%clk 0:01:49.9]} 20. Kf1 {[%clk 0:01:34.5]} 20... Nd5 {[%clk
0:01:23.5]} 21. e4 {[%clk 0:01:16.7]} 21... Nf4 {[%clk 0:01:20.6]} 22. Bxa6
{[%clk 0:01:11]} 22... bxa6 {[%clk 0:01:18.1]} 23. Rb6 {[%clk 0:01:09]} 23... c5
{[%clk 0:01:06.2]} 24. Qc4 {[%clk 0:01:03.4]} 24... Rxd4 {[%clk 0:00:53.4]} 25.
Qxa6+ {[%clk 0:00:59.9]} 25... Kd8 {[%clk 0:00:52.7]} 26. Bxf4 {[%clk
0:00:32.7]} 26... Qxf4 {[%clk 0:00:39.5]} 27. Qa8+ {[%clk 0:00:21.9]} 27... Ke7
{[%clk 0:00:33.2]} 28. Rb7+ {[%clk 0:00:17.5]} 28... Kf6 {[%clk 0:00:29.1]} 29.
Qxe8 {[%clk 0:00:08.8]} 29... Rd1+ {[%clk 0:00:29.1]} 30. Kg2 {[%clk 0:00:09.8]}
30... Qg5+ {[%clk 0:00:29.9]} 31. Kh3 {[%clk 0:00:11]} 31... Qh5+ {[%clk
0:00:30.2]} 32. Kg3 {[%clk 0:00:07.5]} 32... Bd6+ {[%clk 0:00:31.5]} 33. f4
{[%clk 0:00:06.4]} 33... Qg5+ {[%clk 0:00:30.9]} 34. Kf3 {[%clk 0:00:04.9]}
34... Qxf4+ {[%clk 0:00:31.8]} 35. Kg2 {[%clk 0:00:04.7]} 35... Qg4# {[%clk
0:00:30.9]} 0-1

[Event "*** Titled Tuesday Blitz"]
[Site "Chess.com"]
[Date "2020.01.07"]
[Round "7"]
[White "Korchmar_Vasiliy"]
[Black "wonderfultime"]
[Result "1-0"]
[WhiteElo "2812"]
[BlackElo "2951"]
[TimeControl "180+2"]
[EndTime "14:36:36 PST"]
[Termination "Korchmar_Vasiliy won by resignation"]

1. d4 {[%clk 0:03:01.9]} 1... d5 {[%clk 0:02:45.7]} 2. c4 {[%clk 0:03:02.9]}
2... c6 {[%clk 0:02:46.9]} 3. Nf3 {[%clk 0:03:03.8]} 3... Nf6 {[%clk 0:02:48]}
4. g3 {[%clk 0:03:05]} 4... Bf5 {[%clk 0:02:48.5]} 5. Nc3 {[%clk 0:03:05.4]}
5... e6 {[%clk 0:02:50]} 6. Nh4 {[%clk 0:03:06.2]} 6... Be4 {[%clk 0:02:51.5]}
7. f3 {[%clk 0:03:06.8]} 7... Bg6 {[%clk 0:02:53.1]} 8. Qb3 {[%clk 0:03:07.5]}
8... Qb6 {[%clk 0:02:52.4]} 9. c5 {[%clk 0:03:08.6]} 9... Qc7 {[%clk 0:02:40.4]}
10. Bf4 {[%clk 0:03:07.7]} 10... Qc8 {[%clk 0:02:41.9]} 11. e4 {[%clk
0:02:53.7]} 11... Nbd7 {[%clk 0:02:13.1]} 12. exd5 {[%clk 0:02:50.5]} 12... Nxd5
{[%clk 0:02:03.7]} 13. Nxd5 {[%clk 0:02:51.4]} 13... cxd5 {[%clk 0:02:02.8]} 14.
O-O-O {[%clk 0:02:47.3]} 14... Be7 {[%clk 0:01:47.8]} 15. Nxg6 {[%clk
0:02:48.2]} 15... hxg6 {[%clk 0:01:49.7]} 16. Kb1 {[%clk 0:02:46.7]} 16... O-O
{[%clk 0:01:43.9]} 17. h4 {[%clk 0:02:47.3]} 17... e5 {[%clk 0:01:29.8]} 18.
Bxe5 {[%clk 0:02:36.4]} 18... Nxe5 {[%clk 0:01:30.8]} 19. dxe5 {[%clk
0:02:38.3]} 19... Qxc5 {[%clk 0:01:32.4]} 20. h5 {[%clk 0:02:20]} 20... gxh5
{[%clk 0:01:24.4]} 21. Rxh5 {[%clk 0:02:21.9]} 21... Rac8 {[%clk 0:01:18.8]} 22.
Bd3 {[%clk 0:02:11.8]} 22... g6 {[%clk 0:01:19.8]} 23. Rh2 {[%clk 0:02:12.8]}
23... Kg7 {[%clk 0:01:13]} 24. f4 {[%clk 0:02:08.9]} 24... Rh8 {[%clk
0:01:03.7]} 25. Rxh8 {[%clk 0:02:05.3]} 25... Rxh8 {[%clk 0:01:05.6]} 26. Qxb7
{[%clk 0:02:07]} 26... Rh2 {[%clk 0:01:00.4]} 27. Rc1 {[%clk 0:01:59.8]} 27...
Qd4 {[%clk 0:00:56.5]} 28. Bc2 {[%clk 0:01:58.1]} 28... Kf8 {[%clk 0:00:41]} 29.
a3 {[%clk 0:01:47.7]} 29... Qb6 {[%clk 0:00:25.2]} 30. Qxb6 {[%clk 0:01:44.9]}
30... axb6 {[%clk 0:00:27.1]} 31. Bb3 {[%clk 0:01:46.8]} 31... Rg2 {[%clk
0:00:18.9]} 32. Rc8+ {[%clk 0:01:37.2]} 32... Kg7 {[%clk 0:00:20.3]} 33. Rc7
{[%clk 0:01:39.1]} 33... Kf8 {[%clk 0:00:21.6]} 34. Rb7 {[%clk 0:01:34.6]} 34...
Rxg3 {[%clk 0:00:22.5]} 35. Rxb6 {[%clk 0:01:35.3]} 35... d4 {[%clk 0:00:21.7]}
36. a4 {[%clk 0:01:28]} 36... d3 {[%clk 0:00:22.6]} 37. a5 {[%clk 0:01:29.5]}
37... Bc5 {[%clk 0:00:19.3]} 38. Rb8+ {[%clk 0:01:26.8]} 38... Kg7 {[%clk
0:00:20.7]} 39. a6 {[%clk 0:01:23.3]} 39... d2 {[%clk 0:00:19.6]} 40. Bd1 {[%clk
0:01:15.9]} 40... Rg1 {[%clk 0:00:12.8]} 41. Kc2 {[%clk 0:01:16.6]} 41... Rf1
{[%clk 0:00:14.7]} 42. b4 {[%clk 0:01:10.7]} 42... Bg1 {[%clk 0:00:15.9]} 43. b5
{[%clk 0:01:07.2]} 43... Rxf4 {[%clk 0:00:14.5]} 44. b6 {[%clk 0:01:08.4]} 44...
Ra4 {[%clk 0:00:15.2]} 45. b7 {[%clk 0:01:04.4]} 45... Rxa6 {[%clk 0:00:13.9]}
46. Ra8 {[%clk 0:00:57.5]} 46... Rc6+ {[%clk 0:00:10.4]} 47. Kxd2 {[%clk
0:00:58.7]} 47... Bh2 {[%clk 0:00:04.1]} 1-0

[Event "*** Titled Tuesday Blitz"]
[Site "Chess.com"]
[Date "2020.01.07"]
[Round "7"]
[White "Incognito_Knight"]
[Black "benhal"]
[Result "1/2-1/2"]
[WhiteElo "2755"]
[BlackElo "2397"]
[TimeControl "180+2"]
[EndTime "14:36:38 PST"]
[Termination "Game drawn by agreement"]

1. e4 {[%clk 0:02:56.2]} 1... c5 {[%clk 0:02:59.9]} 2. Nf3 {[%clk 0:02:53.5]}
2... Nc6 {[%clk 0:03:00.7]} 3. d4 {[%clk 0:02:50.7]} 3... cxd4 {[%clk
0:03:01.5]} 4. Nxd4 {[%clk 0:02:52.6]} 4... Nf6 {[%clk 0:03:01.8]} 5. Nc3 {[%clk
0:02:52.1]} 5... e5 {[%clk 0:03:03]} 6. Ndb5 {[%clk 0:02:53.1]} 6... d6 {[%clk
0:03:04.1]} 7. Bg5 {[%clk 0:02:53.9]} 7... a6 {[%clk 0:03:04.8]} 8. Na3 {[%clk
0:02:55.4]} 8... b5 {[%clk 0:03:06]} 9. Nd5 {[%clk 0:02:56.8]} 9... Be7 {[%clk
0:03:07.1]} 10. Bxf6 {[%clk 0:02:58.1]} 10... Bxf6 {[%clk 0:03:08.7]} 11. c3
{[%clk 0:02:59.6]} 11... Bg5 {[%clk 0:03:09.6]} 12. Nc2 {[%clk 0:03:00.8]} 12...
Ne7 {[%clk 0:03:10.7]} 13. Ncb4 {[%clk 0:02:57.6]} 13... Nxd5 {[%clk 0:02:37.8]}
14. Qxd5 {[%clk 0:02:51.5]} 14... Be6 {[%clk 0:02:30.8]} 15. Qc6+ {[%clk
0:02:50.4]} 15... Bd7 {[%clk 0:02:30.4]} 16. Qxd6 {[%clk 0:02:47.4]} 16... Be7
{[%clk 0:02:31]} 17. Qd2 {[%clk 0:02:42.1]} 17... O-O {[%clk 0:02:29.3]} 18. Nd5
{[%clk 0:02:39.9]} 18... Bc5 {[%clk 0:02:29.9]} 19. Bd3 {[%clk 0:02:37.1]} 19...
Be6 {[%clk 0:02:19.8]} 20. Ne3 {[%clk 0:02:17.6]} 20... Qg5 {[%clk 0:02:13.2]}
21. h4 {[%clk 0:02:05.4]} 21... Qg6 {[%clk 0:01:56.5]} 22. b4 {[%clk 0:01:59.4]}
22... Bxe3 {[%clk 0:01:54.5]} 23. Qxe3 {[%clk 0:02:00.5]} 23... Rac8 {[%clk
0:01:45.9]} 24. Bf1 {[%clk 0:01:24.2]} 24... Rfd8 {[%clk 0:01:31.9]} 25. h5
{[%clk 0:01:23.9]} 25... Qf6 {[%clk 0:01:32.1]} 26. Be2 {[%clk 0:01:24.9]} 26...
h6 {[%clk 0:01:30.9]} 27. O-O {[%clk 0:01:23.6]} 27... Bc4 {[%clk 0:01:29]} 28.
a4 {[%clk 0:01:14.7]} 28... Qh4 {[%clk 0:01:10.9]} 29. Rfc1 {[%clk 0:00:51]}
29... Bxe2 {[%clk 0:01:07.4]} 30. Qxe2 {[%clk 0:00:52.9]} 30... Rc4 {[%clk
0:01:08.5]} 31. axb5 {[%clk 0:00:31.3]} 31... axb5 {[%clk 0:01:10.4]} 32. g3
{[%clk 0:00:32.5]} 32... Qxe4 {[%clk 0:01:03.3]} 33. Qxe4 {[%clk 0:00:32.1]}
33... Rxe4 {[%clk 0:01:05.2]} 34. Ra5 {[%clk 0:00:31.9]} 34... Rb8 {[%clk
0:01:01.5]} 35. Rd1 {[%clk 0:00:28.4]} 35... Rc4 {[%clk 0:01:02.4]} 36. Rd5
{[%clk 0:00:17.9]} 36... Rxc3 {[%clk 0:01:02.1]} 37. Rxe5 {[%clk 0:00:10.5]}
37... Rc4 {[%clk 0:01:02.6]} 38. Raxb5 {[%clk 0:00:11.5]} 38... Rxb4 {[%clk
0:01:03.9]} 39. Rxb4 {[%clk 0:00:11.2]} 39... Rxb4 {[%clk 0:01:05.8]} 40. Kg2
{[%clk 0:00:12.3]} 40... Rb8 {[%clk 0:01:05.5]} 41. Re7 {[%clk 0:00:12.9]} 41...
Kf8 {[%clk 0:01:05.9]} 42. Ra7 {[%clk 0:00:13.5]} 42... Rb5 {[%clk 0:01:04.5]}
43. g4 {[%clk 0:00:14.6]} 43... g6 {[%clk 0:00:57.3]} 44. hxg6 {[%clk
0:00:14.5]} 44... fxg6 {[%clk 0:00:59.2]} 45. Kg3 {[%clk 0:00:12.6]} 45... h5
{[%clk 0:01:00]} 46. gxh5 {[%clk 0:00:09.3]} 46... Rxh5 {[%clk 0:01:01.9]} 47.
Kg4 {[%clk 0:00:08.1]} 47... Rf5 {[%clk 0:01:02.5]} 48. f4 {[%clk 0:00:09.3]}
48... Rf7 {[%clk 0:01:03.7]} 49. Ra6 {[%clk 0:00:09.2]} 49... Kg7 {[%clk
0:00:57.3]} 50. Kg5 {[%clk 0:00:08.2]} 1/2-1/2

[Event "*** Titled Tuesday Blitz"]
[Site "Chess.com"]
[Date "2020.01.07"]
[Round "7"]
[White "mersad_98"]
[Black "GianmarcoVaR"]
[Result "0-1"]
[WhiteElo "2739"]
[BlackElo "2599"]
[TimeControl "180+2"]
[EndTime "14:36:44 PST"]
[Termination "GianmarcoVaR won by resignation"]

1. e4 {[%clk 0:03:01.9]} 1... c5 {[%clk 0:03:00.7]} 2. Nf3 {[%clk 0:03:00.6]}
2... d6 {[%clk 0:03:01.9]} 3. d4 {[%clk 0:03:00.9]} 3... cxd4 {[%clk 0:03:03.1]}
4. Nxd4 {[%clk 0:03:02.8]} 4... Nf6 {[%clk 0:03:04.3]} 5. Nc3 {[%clk 0:03:03.7]}
5... a6 {[%clk 0:03:04.6]} 6. f3 {[%clk 0:03:03]} 6... e5 {[%clk 0:02:59]} 7.
Nb3 {[%clk 0:03:04]} 7... Be6 {[%clk 0:03:00.2]} 8. Be3 {[%clk 0:03:05.5]} 8...
Nbd7 {[%clk 0:02:59.4]} 9. Qd2 {[%clk 0:03:06.4]} 9... b5 {[%clk 0:03:00.4]} 10.
O-O-O {[%clk 0:03:02]} 10... Be7 {[%clk 0:03:00.5]} 11. g4 {[%clk 0:03:01.9]}
11... b4 {[%clk 0:03:01.5]} 12. Nd5 {[%clk 0:03:02.9]} 12... Bxd5 {[%clk
0:03:02.8]} 13. exd5 {[%clk 0:03:04.8]} 13... Nb6 {[%clk 0:03:02.8]} 14. Bxb6
{[%clk 0:01:20]} 14... Qxb6 {[%clk 0:03:02.5]} 15. g5 {[%clk 0:01:21.9]} 15...
Nh5 {[%clk 0:03:02.4]} 16. h4 {[%clk 0:01:22.2]} 16... a5 {[%clk 0:03:01.8]} 17.
Kb1 {[%clk 0:01:17.6]} 17... a4 {[%clk 0:02:53.9]} 18. Nc1 {[%clk 0:01:18.9]}
18... O-O {[%clk 0:02:53.7]} 19. Bh3 {[%clk 0:01:01.7]} 19... Nf4 {[%clk
0:02:37.9]} 20. Bf5 {[%clk 0:01:01.2]} 20... g6 {[%clk 0:01:57.1]} 21. Be4
{[%clk 0:00:56.9]} 21... h6 {[%clk 0:01:53.1]} 22. gxh6 {[%clk 0:00:51.7]} 22...
f5 {[%clk 0:01:53.4]} 23. Bd3 {[%clk 0:00:48.5]} 23... a3 {[%clk 0:01:45.1]} 24.
b3 {[%clk 0:00:46.1]} 24... Qd4 {[%clk 0:01:44.4]} 25. c3 {[%clk 0:00:41.6]}
25... bxc3 {[%clk 0:01:37.4]} 26. Qc2 {[%clk 0:00:42.1]} 26... Qc5 {[%clk
0:01:32.5]} 27. h5 {[%clk 0:00:31.9]} 27... gxh5 {[%clk 0:00:46.8]} 28. Bxf5
{[%clk 0:00:31.3]} 28... Kh8 {[%clk 0:00:40]} 29. Nd3 {[%clk 0:00:23.3]} 29...
Nxd3 {[%clk 0:00:40.5]} 30. Bxd3 {[%clk 0:00:25.2]} 30... Rxf3 {[%clk
0:00:38.6]} 31. Rxh5 {[%clk 0:00:25.2]} 31... Rf2 {[%clk 0:00:38.7]} 32. Be2
{[%clk 0:00:21.9]} 32... Rg8 {[%clk 0:00:22.4]} 33. Rf5 {[%clk 0:00:17.4]} 33...
Rgg2 {[%clk 0:00:21.5]} 34. Rxf2 {[%clk 0:00:18.8]} 34... Qxf2 {[%clk 0:00:23]}
35. Bd3 {[%clk 0:00:07.7]} 35... Qf3 {[%clk 0:00:21.1]} 36. Qc1 {[%clk
0:00:05.8]} 36... c2+ {[%clk 0:00:19]} 37. Bxc2 {[%clk 0:00:06.5]} 37... Qc3
{[%clk 0:00:12.1]} 38. Qxa3 {[%clk 0:00:07.6]} 38... Qxc2+ {[%clk 0:00:09.9]}
39. Ka1 {[%clk 0:00:09.5]} 39... Qxd1+ {[%clk 0:00:10.9]} 0-1